[Event "Titled Tuesday Blitz July 26 Late 2022"]
[White "Meshkovs, Nikita"]
[Black "Baches Garcia, Guillermo"]
[WhiteFideId "11602740"]
[BlackFideId "2209764"]
[WhiteElo "2506"]
[BlackElo "2536"]
[Result "1-0"]
[Round "05"]
[TimeControl "180+1"]
[Date "2022.07.26"]
[WhiteClock "0:01:09"]
[BlackClock "0:00:02"]

1. c4 {[%clk 0:03:00]}  Nf6 {[%clk 0:02:59]} 2. Nf3 {[%clk 0:02:57]}  e6 {[%clk 0:02:58]} 3. g3 {[%clk 0:02:55]}  d5 {[%clk 0:02:58]} 4. d4 {[%clk 0:02:55]}  Be7 {[%clk 0:02:56]} 5. Bg2 {[%clk 0:02:54]}  O-O {[%clk 0:02:56]} 6. O-O {[%clk 0:02:55]}  dxc4 {[%clk 0:02:57]} 7. Qc2 {[%clk 0:02:55]}  a6 {[%clk 0:02:57]} 8. a4 {[%clk 0:02:56]}  Bd7 {[%clk 0:02:57]} 9. Qxc4 {[%clk 0:02:55]}  Bc6 {[%clk 0:02:57]} 10. Bf4 {[%clk 0:02:53]}  Bd6 {[%clk 0:02:56]} 11. Bg5 {[%clk 0:02:51]}  Nbd7 {[%clk 0:02:54]} 12. Nc3 {[%clk 0:02:48]}  h6 {[%clk 0:02:51]} 13. Bxf6 {[%clk 0:02:48]}  Nxf6 {[%clk 0:02:51]} 14. Rfd1 {[%clk 0:02:44]}  Bd5 {[%clk 0:02:42]} 15. Qd3 {[%clk 0:02:41]}  Bxf3 {[%clk 0:02:41]} 16. Bxf3 {[%clk 0:02:36]}  c6 {[%clk 0:02:41]} 17. Rac1 {[%clk 0:02:26]}  a5 {[%clk 0:02:34]} 18. Kg2 {[%clk 0:02:23]}  Qe7 {[%clk 0:02:34]} 19. e3 {[%clk 0:02:17]}  Rfd8 {[%clk 0:02:25]} 20. Qc4 {[%clk 0:02:05]}  h5 {[%clk 0:02:07]} 21. h4 {[%clk 0:02:04]}  g6 {[%clk 0:02:07]} 22. Qb3 {[%clk 0:02:01]}  Kg7 {[%clk 0:02:05]} 23. Rc2 {[%clk 0:01:59]}  Nd5 {[%clk 0:01:53]} 24. Ne4 {[%clk 0:01:58]}  Nb4 {[%clk 0:01:45]} 25. Rcd2 {[%clk 0:01:58]}  Rac8 {[%clk 0:01:34]} 26. Qc3 {[%clk 0:01:57]}  Nd5 {[%clk 0:01:29]} 27. Qc4 {[%clk 0:01:52]}  Bb4 {[%clk 0:01:21]} 28. Rd3 {[%clk 0:01:50]}  Nf6 {[%clk 0:01:04]} 29. Nc5 {[%clk 0:01:49]}  b6 {[%clk 0:00:54]} 30. Nb3 {[%clk 0:01:44]}  Rc7 {[%clk 0:00:36]} 31. Na1 {[%clk 0:01:39]}  Bd6 {[%clk 0:00:31]} 32. Nc2 {[%clk 0:01:37]}  Ne8 {[%clk 0:00:18]} 33. Rb3 {[%clk 0:01:36]}  Rb8 {[%clk 0:00:17]} 34. Ne1 {[%clk 0:01:35]}  Qd7 {[%clk 0:00:15]} 35. Nd3 {[%clk 0:01:34]}  Nf6 {[%clk 0:00:14]} 36. Ne5 {[%clk 0:01:34]}  Qe8 {[%clk 0:00:13]} 37. Nxc6 {[%clk 0:01:31]}  Nd5 {[%clk 0:00:10]} 38. Rc1 {[%clk 0:01:31]}  Rbc8 {[%clk 0:00:10]} 39. Rbc3 {[%clk 0:01:26]}  Rxc6 {[%clk 0:00:09]} 40. Qxc6 {[%clk 0:01:25]}  Rxc6 {[%clk 0:00:09]} 41. Rxc6 {[%clk 0:01:26]}  Bb4 {[%clk 0:00:08]} 42. b3 {[%clk 0:01:21]}  Qe7 {[%clk 0:00:06]} 43. Rc8 {[%clk 0:01:18]}  Qd6 {[%clk 0:00:06]} 44. R1c6 {[%clk 0:01:18]}  Qe7 {[%clk 0:00:05]} 45. Rc2 {[%clk 0:01:18]}  Qf6 {[%clk 0:00:05]} 46. R2c6 {[%clk 0:01:17]}  Nc3 {[%clk 0:00:05]} 47. Rxc3 {[%clk 0:01:16]}  Bxc3 {[%clk 0:00:05]} 48. Rxc3 {[%clk 0:01:17]}  Qe7 {[%clk 0:00:05]} 49. Rc6 {[%clk 0:01:17]}  Qb4 {[%clk 0:00:05]} 50. Bd1 {[%clk 0:01:13]}  Qd2 {[%clk 0:00:05]} 51. Bf3 {[%clk 0:01:12]}  Qb4 {[%clk 0:00:05]} 52. Be2 {[%clk 0:01:09]}  Qxb3 {[%clk 0:00:03]} 53. Bb5 {[%clk 0:01:10]}  Qb4 {[%clk 0:00:02]} 54. Rxb6 {[%clk 0:01:09]}  Kf6 {[%clk 0:00:02]} 55. Rb7 {[%clk 0:01:09]} 1-0


[Site "https://www.chess.com"]

[Event "Titled Tuesday Blitz July 26 Late 2022"]
[White "Ozates, Tuna"]
[Black "Djordjevic, Vuk"]
[WhiteFideId "6354521"]
[BlackFideId "902098"]
[WhiteElo "1887"]
[BlackElo "2456"]
[Result "1-0"]
[Round "05"]
[TimeControl "180+1"]
[Date "2022.07.27"]
[WhiteClock "0:00:20"]
[BlackClock "0:00:03"]

1. e4 {[%clk 0:03:00]}  d5 {[%clk 0:02:59]} 2. exd5 {[%clk 0:02:59]}  Qxd5 {[%clk 0:03:00]} 3. Nc3 {[%clk 0:02:59]}  Qd6 {[%clk 0:03:01]} 4. d4 {[%clk 0:03:00]}  Nf6 {[%clk 0:03:01]} 5. Nf3 {[%clk 0:03:00]}  c6 {[%clk 0:03:02]} 6. g3 {[%clk 0:03:01]}  Bg4 {[%clk 0:03:02]} 7. Bg2 {[%clk 0:03:02]}  e6 {[%clk 0:03:02]} 8. O-O {[%clk 0:03:02]}  Be7 {[%clk 0:03:01]} 9. Qd3 {[%clk 0:02:58]}  Nbd7 {[%clk 0:02:59]} 10. Bf4 {[%clk 0:02:53]}  Qb4 {[%clk 0:02:59]} 11. a3 {[%clk 0:02:52]}  Qb6 {[%clk 0:02:58]} 12. b4 {[%clk 0:02:52]}  Nd5 {[%clk 0:02:54]} 13. Bd2 {[%clk 0:02:51]}  Nxc3 {[%clk 0:02:49]} 14. Bxc3 {[%clk 0:02:50]}  Rd8 {[%clk 0:02:47]} 15. Qe3 {[%clk 0:02:45]}  Nf6 {[%clk 0:02:33]} 16. Bb2 {[%clk 0:02:38]}  Bxf3 {[%clk 0:02:19]} 17. Bxf3 {[%clk 0:02:38]}  Qb5 {[%clk 0:02:01]} 18. Be2 {[%clk 0:02:35]}  Qf5 {[%clk 0:01:57]} 19. c4 {[%clk 0:02:34]}  h5 {[%clk 0:01:50]} 20. Bd3 {[%clk 0:02:26]}  Qh3 {[%clk 0:01:48]} 21. Qf3 {[%clk 0:02:16]}  Ng4 {[%clk 0:01:47]} 22. Qg2 {[%clk 0:02:14]}  Qxg2+ {[%clk 0:01:48]} 23. Kxg2 {[%clk 0:02:15]}  Bf6 {[%clk 0:01:49]} 24. h3 {[%clk 0:02:05]}  Bxd4 {[%clk 0:01:45]} 25. Bxd4 {[%clk 0:02:05]}  Rxd4 {[%clk 0:01:46]} 26. hxg4 {[%clk 0:02:04]}  Rxd3 {[%clk 0:01:43]} 27. Rh1 {[%clk 0:02:03]}  g6 {[%clk 0:01:42]} 28. gxh5 {[%clk 0:02:03]}  Rxh5 {[%clk 0:01:41]} 29. Rxh5 {[%clk 0:02:03]}  gxh5 {[%clk 0:01:42]} 30. Rh1 {[%clk 0:02:01]}  Rxa3 {[%clk 0:01:39]} 31. Rxh5 {[%clk 0:02:01]}  Ra4 {[%clk 0:01:38]} 32. Rh8+ {[%clk 0:01:45]}  Ke7 {[%clk 0:01:36]} 33. b5 {[%clk 0:01:37]}  cxb5 {[%clk 0:01:20]} 34. cxb5 {[%clk 0:01:36]}  Ra5 {[%clk 0:01:21]} 35. Ra8 {[%clk 0:01:36]}  Kd6 {[%clk 0:01:17]} 36. g4 {[%clk 0:01:30]}  Kc5 {[%clk 0:01:09]} 37. Rf8 {[%clk 0:01:25]}  Kxb5 {[%clk 0:01:01]} 38. Rxf7 {[%clk 0:01:24]}  Kc6 {[%clk 0:01:00]} 39. Re7 {[%clk 0:01:22]}  Rg5 {[%clk 0:00:49]} 40. Kg3 {[%clk 0:01:18]}  Rg6 {[%clk 0:00:40]} 41. f4 {[%clk 0:01:17]}  a5 {[%clk 0:00:39]} 42. g5 {[%clk 0:01:17]}  a4 {[%clk 0:00:38]} 43. Kg4 {[%clk 0:01:15]}  a3 {[%clk 0:00:20]} 44. Kh5 {[%clk 0:01:15]}  a2 {[%clk 0:00:16]} 45. Kxg6 {[%clk 0:01:10]}  a1=Q {[%clk 0:00:17]} 46. Rxe6+ {[%clk 0:01:11]}  Kd5 {[%clk 0:00:14]} 47. f5 {[%clk 0:01:12]}  Qb1 {[%clk 0:00:13]} 48. Kf6 {[%clk 0:01:07]}  Qb2+ {[%clk 0:00:13]} 49. Kf7 {[%clk 0:01:06]}  Qh8 {[%clk 0:00:09]} 50. g6 {[%clk 0:01:03]}  Qh5 {[%clk 0:00:08]} 51. Kf6 {[%clk 0:01:00]}  Qh4+ {[%clk 0:00:04]} 52. Kg7 {[%clk 0:00:59]}  Qg4 {[%clk 0:00:02]} 53. Kf6 {[%clk 0:00:46]}  b5 {[%clk 0:00:01]} 54. g7 {[%clk 0:00:45]}  b4 {[%clk 0:00:01]} 55. Re8 {[%clk 0:00:43]}  Qd4+ {[%clk 0:00:02]} 56. Kf7 {[%clk 0:00:40]}  Qa7+ {[%clk 0:00:02]} 57. Re7 {[%clk 0:00:37]}  Qf2 {[%clk 0:00:02]} 58. f6 {[%clk 0:00:27]}  b3 {[%clk 0:00:03]} 59. g8=Q {[%clk 0:00:27]}  b2 {[%clk 0:00:03]} 60. Qd8+ {[%clk 0:00:27]}  Kc4 {[%clk 0:00:03]} 61. Rc7+ {[%clk 0:00:27]}  Kb3 {[%clk 0:00:04]} 62. Qd5+ {[%clk 0:00:22]}  Kb4 {[%clk 0:00:03]} 63. Qc4+ {[%clk 0:00:19]}  Ka5 {[%clk 0:00:03]} 64. Rc5+ {[%clk 0:00:18]}  Kb6 {[%clk 0:00:03]} 65. Rb5+ {[%clk 0:00:19]}  Ka7 {[%clk 0:00:03]} 66. Qa4# {[%clk 0:00:20]} 1-0


[Site "https://www.chess.com"]

[Event "Titled Tuesday Blitz July 26 Late 2022"]
[White "Ozer, Omer Faruk"]
[Black "D`Arruda, Ricardo D."]
[WhiteFideId "6354564"]
[BlackFideId "100692"]
[WhiteElo "2050"]
[BlackElo "2424"]
[Result "1-0"]
[Round "05"]
[TimeControl "180+1"]
[Date "2022.07.27"]
[WhiteClock "0:00:22"]
[BlackClock "0:00:21"]

1. e4 {[%clk 0:02:52]}  c5 {[%clk 0:02:58]} 2. Nc3 {[%clk 0:02:52]}  e6 {[%clk 0:02:57]} 3. Nf3 {[%clk 0:02:10]}  Nf6 {[%clk 0:02:55]} 4. d4 {[%clk 0:02:10]}  cxd4 {[%clk 0:02:54]} 5. Nxd4 {[%clk 0:01:58]}  d6 {[%clk 0:02:53]} 6. g4 {[%clk 0:01:57]}  Be7 {[%clk 0:02:52]} 7. h4 {[%clk 0:01:54]}  Nc6 {[%clk 0:02:51]} 8. g5 {[%clk 0:01:54]}  Nd7 {[%clk 0:02:51]} 9. Be3 {[%clk 0:01:49]}  a6 {[%clk 0:02:48]} 10. Bg2 {[%clk 0:01:46]}  Qc7 {[%clk 0:02:47]} 11. Qe2 {[%clk 0:01:46]}  Nb6 {[%clk 0:02:23]} 12. O-O-O {[%clk 0:01:41]}  Ne5 {[%clk 0:02:15]} 13. Kb1 {[%clk 0:01:39]}  Nec4 {[%clk 0:02:14]} 14. Bc1 {[%clk 0:01:39]}  Bd7 {[%clk 0:02:11]} 15. b3 {[%clk 0:01:30]}  Na3+ {[%clk 0:01:57]} 16. Bxa3 {[%clk 0:01:29]}  Qxc3 {[%clk 0:01:57]} 17. Bb2 {[%clk 0:01:29]}  Qc7 {[%clk 0:01:57]} 18. f4 {[%clk 0:01:28]}  O-O-O {[%clk 0:01:52]} 19. Rh3 {[%clk 0:01:02]}  e5 {[%clk 0:01:07]} 20. Rc3 {[%clk 0:01:00]}  Qxc3 {[%clk 0:01:01]} 21. Bxc3 {[%clk 0:01:00]}  exd4 {[%clk 0:01:02]} 22. Bxd4 {[%clk 0:01:00]}  Na8 {[%clk 0:01:02]} 23. Bxg7 {[%clk 0:00:55]}  Rhg8 {[%clk 0:01:02]} 24. Bd4 {[%clk 0:00:51]}  Kb8 {[%clk 0:01:01]} 25. Qe3 {[%clk 0:00:48]}  Bc6 {[%clk 0:00:55]} 26. Ba7+ {[%clk 0:00:46]}  Kc7 {[%clk 0:00:55]} 27. Rd3 {[%clk 0:00:35]}  Rc8 {[%clk 0:00:42]} 28. Rc3 {[%clk 0:00:34]}  Kd8 {[%clk 0:00:42]} 29. Bh3 {[%clk 0:00:31]}  Bd7 {[%clk 0:00:41]} 30. Rxc8+ {[%clk 0:00:30]}  Bxc8 {[%clk 0:00:41]} 31. Bxc8 {[%clk 0:00:29]}  Kxc8 {[%clk 0:00:41]} 32. Qc3+ {[%clk 0:00:30]}  Kd7 {[%clk 0:00:39]} 33. Qc4 {[%clk 0:00:30]}  Rf8 {[%clk 0:00:36]} 34. Bd4 {[%clk 0:00:30]}  Nc7 {[%clk 0:00:30]} 35. Bg7 {[%clk 0:00:29]}  Re8 {[%clk 0:00:28]} 36. Qxf7 {[%clk 0:00:29]}  Ne6 {[%clk 0:00:27]} 37. f5 {[%clk 0:00:26]}  Nd8 {[%clk 0:00:27]} 38. Qh5 {[%clk 0:00:23]}  Bf8 {[%clk 0:00:25]} 39. Qxh7 {[%clk 0:00:22]}  Bxg7 {[%clk 0:00:20]} 40. Qxg7+ {[%clk 0:00:22]}  Re7 {[%clk 0:00:21]} 41. f6 {[%clk 0:00:22]} 1-0


[Site "https://www.chess.com"]

[Event "Titled Tuesday Blitz July 26 Late 2022"]
[White "Petrovic, Aleksa"]
[Black "Barria Zuniga, Daniel"]
[WhiteFideId "967629"]
[BlackFideId "3400816"]
[WhiteElo "2185"]
[BlackElo "2414"]
[Result "0-1"]
[Round "05"]
[TimeControl "180+1"]
[Date "2022.07.26"]
[WhiteClock "0:00:14"]
[BlackClock "0:00:25"]

1. d4 {[%clk 0:03:00]}  g6 {[%clk 0:02:55]} 2. c4 {[%clk 0:02:57]}  Bg7 {[%clk 0:02:55]} 3. e4 {[%clk 0:02:57]}  c5 {[%clk 0:02:50]} 4. d5 {[%clk 0:02:57]}  d6 {[%clk 0:02:50]} 5. Ne2 {[%clk 0:02:56]}  a6 {[%clk 0:02:46]} 6. a4 {[%clk 0:02:55]}  Nf6 {[%clk 0:02:44]} 7. Nbc3 {[%clk 0:02:54]}  O-O {[%clk 0:02:44]} 8. f3 {[%clk 0:02:54]}  e6 {[%clk 0:02:41]} 9. Ng3 {[%clk 0:02:53]}  exd5 {[%clk 0:02:42]} 10. cxd5 {[%clk 0:02:54]}  Nbd7 {[%clk 0:02:33]} 11. Be2 {[%clk 0:02:54]}  h5 {[%clk 0:02:32]} 12. Bg5 {[%clk 0:02:53]}  Qb6 {[%clk 0:02:28]} 13. Qd2 {[%clk 0:02:52]}  Nh7 {[%clk 0:02:25]} 14. a5 {[%clk 0:02:52]}  Qc7 {[%clk 0:02:23]} 15. Bh6 {[%clk 0:02:52]}  h4 {[%clk 0:02:23]} 16. Bxg7 {[%clk 0:02:48]}  Kxg7 {[%clk 0:02:24]} 17. Nf1 {[%clk 0:02:41]}  h3 {[%clk 0:02:23]} 18. g3 {[%clk 0:02:36]}  b5 {[%clk 0:02:18]} 19. axb6 {[%clk 0:02:35]}  Nxb6 {[%clk 0:02:07]} 20. Ne3 {[%clk 0:02:35]}  f5 {[%clk 0:02:06]} 21. O-O {[%clk 0:02:14]}  Qe7 {[%clk 0:01:25]} 22. Nc4 {[%clk 0:01:34]}  Nxc4 {[%clk 0:01:23]} 23. Bxc4 {[%clk 0:01:35]}  Ng5 {[%clk 0:01:06]} 24. e5 {[%clk 0:01:14]}  Qxe5 {[%clk 0:01:00]} 25. Qxg5 {[%clk 0:01:05]}  Qd4+ {[%clk 0:01:00]} 26. Kh1 {[%clk 0:01:06]}  Qxc4 {[%clk 0:01:00]} 27. Qe7+ {[%clk 0:01:01]}  Rf7 {[%clk 0:00:59]} 28. Qxd6 {[%clk 0:01:01]}  Bb7 {[%clk 0:00:58]} 29. Rfe1 {[%clk 0:00:54]}  Qd4 {[%clk 0:00:47]} 30. Re6 {[%clk 0:00:42]}  Qf2 {[%clk 0:00:35]} 31. Rxg6+ {[%clk 0:00:33]}  Kh7 {[%clk 0:00:30]} 32. Rh6+ {[%clk 0:00:32]}  Kg8 {[%clk 0:00:29]} 33. Qg6+ {[%clk 0:00:28]}  Rg7 {[%clk 0:00:28]} 34. Qe6+ {[%clk 0:00:23]}  Rf7 {[%clk 0:00:27]} 35. Qg6+ {[%clk 0:00:14]}  Rg7 {[%clk 0:00:27]} 36. Qxf5 {[%clk 0:00:14]}  Qg2# {[%clk 0:00:25]} 0-1


[Site "https://www.chess.com"]

[Event "Titled Tuesday Blitz July 26 Late 2022"]
[White "Raja Harshit"]
[Black "Aravindh, Chithambaram VR."]
[WhiteFideId "5089000"]
[BlackFideId "5072786"]
[WhiteElo "2338"]
[BlackElo "2577"]
[Result "0-1"]
[Round "05"]
[TimeControl "180+1"]
[Date "2022.07.26"]
[WhiteClock "0:00:05"]
[BlackClock "0:00:04"]

1. e4 {[%clk 0:03:00]}  d6 {[%clk 0:02:58]} 2. d4 {[%clk 0:03:00]}  Nf6 {[%clk 0:02:58]} 3. Nc3 {[%clk 0:03:01]}  g6 {[%clk 0:02:58]} 4. Nf3 {[%clk 0:02:57]}  Bg7 {[%clk 0:02:58]} 5. Bg5 {[%clk 0:02:57]}  O-O {[%clk 0:02:55]} 6. Qd2 {[%clk 0:02:57]}  Bg4 {[%clk 0:02:54]} 7. O-O-O {[%clk 0:02:52]}  Nc6 {[%clk 0:02:53]} 8. d5 {[%clk 0:02:50]}  Nb8 {[%clk 0:02:44]} 9. h4 {[%clk 0:02:39]}  c6 {[%clk 0:02:35]} 10. h5 {[%clk 0:02:36]}  Bxh5 {[%clk 0:01:31]} 11. Bh6 {[%clk 0:02:32]}  Nbd7 {[%clk 0:01:27]} 12. dxc6 {[%clk 0:02:11]}  bxc6 {[%clk 0:01:26]} 13. Bxg7 {[%clk 0:01:54]}  Kxg7 {[%clk 0:01:26]} 14. g4 {[%clk 0:01:55]}  Nxg4 {[%clk 0:01:20]} 15. Be2 {[%clk 0:01:50]}  Ndf6 {[%clk 0:01:15]} 16. Rdg1 {[%clk 0:01:44]}  Qa5 {[%clk 0:00:49]} 17. Nd4 {[%clk 0:01:33]}  Nxf2 {[%clk 0:00:29]} 18. Rxh5 {[%clk 0:01:03]}  Nxh5 {[%clk 0:00:25]} 19. Bxh5 {[%clk 0:00:28]}  Nxe4 {[%clk 0:00:17]} 20. Nxe4 {[%clk 0:00:20]}  Qxd2+ {[%clk 0:00:18]} 21. Kxd2 {[%clk 0:00:19]}  c5 {[%clk 0:00:14]} 22. Nc6 {[%clk 0:00:13]}  f5 {[%clk 0:00:04]} 23. Nc3 {[%clk 0:00:11]}  Rf7 {[%clk 0:00:03]} 24. Bf3 {[%clk 0:00:11]}  Re8 {[%clk 0:00:02]} 25. Re1 {[%clk 0:00:10]}  e5 {[%clk 0:00:03]} 26. Bd5 {[%clk 0:00:09]}  Rd7 {[%clk 0:00:03]} 27. a4 {[%clk 0:00:08]}  e4 {[%clk 0:00:03]} 28. Ke3 {[%clk 0:00:08]}  h5 {[%clk 0:00:03]} 29. Na5 {[%clk 0:00:08]}  Rf8 {[%clk 0:00:03]} 30. Nc4 {[%clk 0:00:08]}  f4+ {[%clk 0:00:03]} 31. Kf2 {[%clk 0:00:07]}  e3+ {[%clk 0:00:03]} 32. Kf3 {[%clk 0:00:08]}  g5 {[%clk 0:00:04]} 33. Bc6 {[%clk 0:00:08]}  g4+ {[%clk 0:00:04]} 34. Ke2 {[%clk 0:00:08]}  Re7 {[%clk 0:00:04]} 35. Nxd6 {[%clk 0:00:07]}  f3+ {[%clk 0:00:04]} 36. Kf1 {[%clk 0:00:07]}  e2+ {[%clk 0:00:05]} 37. Kf2 {[%clk 0:00:08]}  Re6 {[%clk 0:00:04]} 38. Nce4 {[%clk 0:00:06]}  h4 {[%clk 0:00:04]} 39. Bd7 {[%clk 0:00:06]}  g3+ {[%clk 0:00:04]} 40. Ke3 {[%clk 0:00:05]}  Rxe4+ {[%clk 0:00:03]} 41. Nxe4 {[%clk 0:00:05]}  f2 {[%clk 0:00:04]} 42. Kxe2 {[%clk 0:00:04]}  fxe1=Q+ {[%clk 0:00:04]} 43. Kxe1 {[%clk 0:00:05]}  g2 {[%clk 0:00:04]} 0-1


[Site "https://www.chess.com"]

[Event "Titled Tuesday Blitz July 26 Late 2022"]
[White "Rose, Felix"]
[Black "Martinez, Shawn"]
[WhiteFideId "5105722"]
[BlackFideId "2039770"]
[WhiteElo "2039"]
[BlackElo "2174"]
[Result "1/2-1/2"]
[Round "05"]
[TimeControl "180+1"]
[Date "2022.07.27"]
[WhiteClock "0:00:09"]
[BlackClock "0:00:06"]

1. e4 {[%clk 0:02:57]}  c5 {[%clk 0:02:56]} 2. Nf3 {[%clk 0:02:43]}  e6 {[%clk 0:02:54]} 3. d4 {[%clk 0:02:43]}  cxd4 {[%clk 0:02:55]} 4. Nxd4 {[%clk 0:02:44]}  a6 {[%clk 0:02:56]} 5. Nc3 {[%clk 0:02:43]}  Bb4 {[%clk 0:02:56]} 6. Bd3 {[%clk 0:02:41]}  Nf6 {[%clk 0:02:54]} 7. O-O {[%clk 0:02:41]}  d6 {[%clk 0:02:53]} 8. Bd2 {[%clk 0:02:37]}  O-O {[%clk 0:02:49]} 9. Qe2 {[%clk 0:02:37]}  Nbd7 {[%clk 0:02:46]} 10. a3 {[%clk 0:02:35]}  Bxc3 {[%clk 0:02:46]} 11. Bxc3 {[%clk 0:02:35]}  e5 {[%clk 0:02:46]} 12. Nf5 {[%clk 0:02:35]}  Nc5 {[%clk 0:02:38]} 13. Ng3 {[%clk 0:02:30]}  Ne6 {[%clk 0:02:32]} 14. Rad1 {[%clk 0:02:27]}  Qc7 {[%clk 0:02:27]} 15. Qd2 {[%clk 0:02:20]}  Nf4 {[%clk 0:02:09]} 16. Rfe1 {[%clk 0:02:17]}  Be6 {[%clk 0:02:04]} 17. Bf1 {[%clk 0:02:09]}  Rad8 {[%clk 0:01:43]} 18. Bb4 {[%clk 0:02:01]}  Ne8 {[%clk 0:01:28]} 19. Re3 {[%clk 0:02:01]}  b6 {[%clk 0:01:21]} 20. a4 {[%clk 0:01:57]}  a5 {[%clk 0:01:21]} 21. Ba3 {[%clk 0:01:56]}  Bc8 {[%clk 0:01:04]} 22. Bb5 {[%clk 0:01:56]}  Ne6 {[%clk 0:00:44]} 23. Bxe8 {[%clk 0:01:51]}  Rfxe8 {[%clk 0:00:43]} 24. Bxd6 {[%clk 0:01:51]}  Qc6 {[%clk 0:00:43]} 25. b3 {[%clk 0:01:40]}  Nd4 {[%clk 0:00:38]} 26. c3 {[%clk 0:00:48]}  Rxd6 {[%clk 0:00:20]} 27. cxd4 {[%clk 0:00:48]}  Rxd4 {[%clk 0:00:21]} 28. Qe1 {[%clk 0:00:45]}  Red8 {[%clk 0:00:21]} 29. Rxd4 {[%clk 0:00:44]}  Rxd4 {[%clk 0:00:19]} 30. Rc3 {[%clk 0:00:44]}  Qd7 {[%clk 0:00:19]} 31. Rc1 {[%clk 0:00:44]}  g6 {[%clk 0:00:19]} 32. h3 {[%clk 0:00:44]}  Bb7 {[%clk 0:00:19]} 33. Qc3 {[%clk 0:00:43]}  Rd3 {[%clk 0:00:19]} 34. Qc7 {[%clk 0:00:43]}  Rd1+ {[%clk 0:00:19]} 35. Kh2 {[%clk 0:00:42]}  Ba6 {[%clk 0:00:18]} 36. Qb8+ {[%clk 0:00:38]}  Kg7 {[%clk 0:00:17]} 37. Rxd1 {[%clk 0:00:38]}  Qxd1 {[%clk 0:00:17]} 38. Qxe5+ {[%clk 0:00:38]}  f6 {[%clk 0:00:15]} 39. Qc7+ {[%clk 0:00:36]}  Kh6 {[%clk 0:00:15]} 40. Qxb6 {[%clk 0:00:36]}  Bd3 {[%clk 0:00:12]} 41. Qxa5 {[%clk 0:00:35]}  Qxb3 {[%clk 0:00:11]} 42. Qd2+ {[%clk 0:00:33]}  Kg7 {[%clk 0:00:11]} 43. a5 {[%clk 0:00:33]}  Bb5 {[%clk 0:00:10]} 44. Qd6 {[%clk 0:00:20]}  Qc4 {[%clk 0:00:10]} 45. e5 {[%clk 0:00:16]}  fxe5 {[%clk 0:00:09]} 46. Qxe5+ {[%clk 0:00:17]}  Kh6 {[%clk 0:00:08]} 47. Ne4 {[%clk 0:00:15]}  Bc6 {[%clk 0:00:04]} 48. Qg5+ {[%clk 0:00:14]}  Kg7 {[%clk 0:00:05]} 49. Qe7+ {[%clk 0:00:13]}  Kh6 {[%clk 0:00:05]} 50. Qh4+ {[%clk 0:00:13]}  Kg7 {[%clk 0:00:05]} 51. Qe7+ {[%clk 0:00:10]}  Kh6 {[%clk 0:00:06]} 52. Nf6 {[%clk 0:00:08]}  Qf4+ {[%clk 0:00:04]} 53. Kg1 {[%clk 0:00:08]}  Qc1+ {[%clk 0:00:05]} 54. Kh2 {[%clk 0:00:09]}  Qf4+ {[%clk 0:00:05]} 55. Kg1 {[%clk 0:00:09]}  Qc1+ {[%clk 0:00:05]} 56. Kh2 {[%clk 0:00:09]}  Qf4+ {[%clk 0:00:06]} 1/2-1/2


[Site "https://www.chess.com"]

[Event "Titled Tuesday Blitz July 26 Late 2022"]
[White "Rychkov, Roman"]
[Black "Krstulovic, Alex"]
[WhiteFideId "30985595"]
[BlackFideId "760056"]
[WhiteElo "1866"]
[BlackElo "2244"]
[Result "1-0"]
[Round "05"]
[TimeControl "180+1"]
[Date "2022.07.27"]
[WhiteClock "0:00:04"]
[BlackClock "0:00:02"]

1. e4 {[%clk 0:03:00]}  c5 {[%clk 0:02:59]} 2. Nf3 {[%clk 0:03:01]}  e6 {[%clk 0:02:59]} 3. c4 {[%clk 0:03:01]}  Nc6 {[%clk 0:02:58]} 4. Nc3 {[%clk 0:03:02]}  e5 {[%clk 0:02:58]} 5. Be2 {[%clk 0:02:59]}  g6 {[%clk 0:02:58]} 6. O-O {[%clk 0:03:00]}  Bg7 {[%clk 0:02:59]} 7. d3 {[%clk 0:03:01]}  d6 {[%clk 0:02:59]} 8. Nd2 {[%clk 0:02:57]}  Nge7 {[%clk 0:02:58]} 9. f4 {[%clk 0:02:57]}  O-O {[%clk 0:02:58]} 10. Nf3 {[%clk 0:02:57]}  f5 {[%clk 0:02:58]} 11. fxe5 {[%clk 0:02:56]}  dxe5 {[%clk 0:02:54]} 12. Nd5 {[%clk 0:02:55]}  Nxd5 {[%clk 0:02:47]} 13. exd5 {[%clk 0:02:51]}  Nd4 {[%clk 0:02:46]} 14. Nxd4 {[%clk 0:02:47]}  cxd4 {[%clk 0:02:46]} 15. Bf3 {[%clk 0:02:40]}  Bd7 {[%clk 0:02:18]} 16. Qb3 {[%clk 0:02:37]}  b5 {[%clk 0:02:16]} 17. c5 {[%clk 0:02:34]}  Rc8 {[%clk 0:02:04]} 18. c6 {[%clk 0:02:33]}  Be8 {[%clk 0:02:03]} 19. Qxb5 {[%clk 0:02:19]}  Qd6 {[%clk 0:01:47]} 20. Bd2 {[%clk 0:01:33]}  Rb8 {[%clk 0:01:45]} 21. Qa5 {[%clk 0:01:33]}  Bf7 {[%clk 0:01:28]} 22. a3 {[%clk 0:01:28]}  Rfc8 {[%clk 0:01:19]} 23. Bb4 {[%clk 0:01:29]}  Qf6 {[%clk 0:01:14]} 24. d6 {[%clk 0:01:01]}  Rb6 {[%clk 0:01:07]} 25. Rac1 {[%clk 0:00:51]}  Bf8 {[%clk 0:01:03]} 26. Qxa7 {[%clk 0:00:51]}  Rxb4 {[%clk 0:01:01]} 27. axb4 {[%clk 0:00:50]}  Bxd6 {[%clk 0:00:58]} 28. b5 {[%clk 0:00:47]}  e4 {[%clk 0:00:54]} 29. dxe4 {[%clk 0:00:44]}  Qh4 {[%clk 0:00:41]} 30. g3 {[%clk 0:00:35]}  Bxg3 {[%clk 0:00:40]} 31. hxg3 {[%clk 0:00:35]}  Qxg3+ {[%clk 0:00:41]} 32. Bg2 {[%clk 0:00:36]}  Qe3+ {[%clk 0:00:41]} 33. Kh1 {[%clk 0:00:30]}  Qh6+ {[%clk 0:00:40]} 34. Kg1 {[%clk 0:00:30]}  Qe3+ {[%clk 0:00:41]} 35. Rf2 {[%clk 0:00:16]}  Qxc1+ {[%clk 0:00:40]} 36. Bf1 {[%clk 0:00:16]}  Qg5+ {[%clk 0:00:39]} 37. Bg2 {[%clk 0:00:17]}  Qc1+ {[%clk 0:00:37]} 38. Bf1 {[%clk 0:00:17]}  d3 {[%clk 0:00:21]} 39. Qd4 {[%clk 0:00:08]}  fxe4 {[%clk 0:00:17]} 40. Qxe4 {[%clk 0:00:04]}  d2 {[%clk 0:00:12]} 41. Qf4 {[%clk 0:00:04]}  Bd5 {[%clk 0:00:06]} 42. Qxd2 {[%clk 0:00:03]}  Qc5 {[%clk 0:00:06]} 43. Qf4 {[%clk 0:00:03]}  Re8 {[%clk 0:00:04]} 44. Qf6 {[%clk 0:00:02]}  Be4 {[%clk 0:00:02]} 45. Qf7+ {[%clk 0:00:01]}  Kh8 {[%clk 0:00:01]} 46. Qxe8+ {[%clk 0:00:02]}  Kg7 {[%clk 0:00:02]} 47. Qf7+ {[%clk 0:00:03]}  Kh6 {[%clk 0:00:02]} 48. Qf4+ {[%clk 0:00:03]}  Kg7 {[%clk 0:00:02]} 49. Qxe4 {[%clk 0:00:04]} 1-0


[Site "https://www.chess.com"]